bitfinex-derivatives/quotes_ETHF0:USTF0_20241229
["timestamp","ask_amount","ask_price","bid_price","bid_amount"]
[1735498162927,0.29731,3369.3,3369.2,2.95291383]
[1735498163127,0.29731,3369.3,3369.2,3.69649746]
[1735498164335,0.29731,3369.3,3369.2,4.7374747]
[1735498164535,0.29731,3369.3,3369.2,3.55089717]
[1735498165137,0.29731,3369.3,3369.2,4.73208683]
[1735498165339,5.85296943,3369.6,3369.2,4.73208683]
[1735498165540,5.48112021,3369.6,3369.4,0.2973]
[1735498165733,5.48112021,3369.6,3369.5,4.22269862]
[1735498166133,5.48112021,3369.6,3369.5,6.73261855]
[1735498166436,3.2078,3369.8,3369.5,7.15561092]
[1735498166740,2.46423992,3369.8,3369.6,6.87468239]
[1735498166937,2.76150992,3369.8,3369.7,4.35957367]
[1735498167136,0.29727,3369.8,3369.7,6.8694936]
[1735498167437,0.29727,3369.8,3369.7,4.51740234]
[1735498169441,3.19809541,3370.0,3369.7,3.4764251]
[1735498169641,0.29726,3369.9,3369.8,0.96650517]
[1735498170142,0.29726,3369.9,3369.8,3.47646821]
[1735498170738,0.29726,3369.9,3369.8,3.4764207]
[1735498171939,0.29726,3369.9,3369.8,4.51723807]
[1735498172138,0.29726,3369.9,3369.8,4.51721244]
[1735498172438,0.29726,3369.9,3369.8,5.44651708]
[1735498172742,2.33203208,3369.9,3369.8,6.68962955]
[1735498173138,2.62929208,3369.9,3369.8,6.68962955]
[1735498173441,2.62929208,3369.9,3369.8,5.4464873]
[1735498173741,2.62929208,3369.9,3369.8,3.47636529]
[1735498173939,2.62929208,3369.9,3369.8,5.76001228]
[1735498174242,0.29726,3369.9,3369.8,3.47636529]
[1735498174740,0.29726,3369.9,3369.8,2.88162968]
[1735498175337,2.62929208,3369.9,3369.8,1.58009574]
[1735498175540,3.05729208,3369.9,3369.8,1.58009574]
[1735498175746,3.05729208,3369.9,3369.8,2.00388254]
[1735498176442,0.72526,3369.9,3369.8,0.79567322]
[1735498176643,0.72526,3369.9,3369.8,0.96655125]
[1735498179942,0.428,3369.9,3369.8,0.96656915]
[1735498180247,0.72526,3369.9,3369.8,0.96656915]
[1735498180645,0.72526,3369.9,3369.8,1.39154336]
[1735498181543,0.72526,3369.9,3369.8,2.19088549]
[1735498181746,0.72526,3369.9,3369.8,1.85631884]
[1735498182544,5.72526,3369.9,3369.8,1.85631884]
[1735498182739,5.428,3369.9,3369.1,3.2078]
[1735498182943,0.29732,3369.2,3369.1,3.2078]
[1735498183350,3.68834108,3369.2,3369.1,2.04501892]
[1735498183649,3.05607799,3369.2,3369.1,2.04501892]
[1735498184248,0.29736,3368.8,3368.7,0.4635]
[1735498184449,2.75875799,3369.2,3368.7,2.80610846]
[1735498184649,2.75875799,3369.2,3368.8,1.30145005]
[1735498184853,0.29735,3368.9,3368.8,1.30145005]
[1735498185153,0.29736,3368.8,3368.7,0.4635]
[1735498185353,0.29736,3368.8,3368.7,1.50465196]
[1735498185552,0.29736,3368.8,3368.7,2.80609138]
[1735498185854,2.33092313,3369.0,3368.7,4.07771304]
[1735498186151,0.29735,3368.9,3368.8,3.61421304]
[1735498186546,0.29735,3368.9,3368.8,2.31277362]
[1735498187746,0.29736,3368.8,3368.7,0.4635]
[1735498188053,0.29736,3368.8,3368.7,2.7698586]
[1735498188243,0.29736,3368.8,3368.3,3.2078]
[1735498188244,4.57031969,3369.0,3368.3,3.2078]
[1735498188452,0.29738,3368.5,3368.4,2.76580763]
[1735498188748,0.29738,3368.5,3368.4,1.50072491]
[1735498189448,0.29738,3368.5,3368.4,2.80224948]
[1735498190253,0.29738,3368.5,3368.4,1.76102457]
[1735498190646,0.29738,3368.5,3368.4,2.80224328]
[1735498191858,0.29738,3368.5,3368.4,4.01736242]
[1735498192453,0.29738,3368.5,3368.4,4.76107689]
[1735498192655,2.33092313,3368.7,3368.4,4.76107689]
[1735498192951,1.93219313,3368.7,3368.5,2.85127077]
[1735498193154,1.93219313,3368.7,3368.6,2.85127077]
[1735498193355,1.93219313,3368.7,3368.6,4.89650981]
[1735498193656,1.00264249,3368.7,3368.6,4.89650981]
[1735498194250,0.29737,3368.7,3368.6,4.89650981]
[1735498194450,4.50207799,3369.2,3368.6,4.15279534]
[1735498194746,0.29736,3368.8,3368.7,3.08337594]
[1735498194946,0.29736,3368.8,3368.7,5.86916663]
[1735498195855,1.74332,3369.2,3368.7,5.44459948]
[1735498196056,0.29735,3368.9,3368.8,3.77426645]
[1735498197856,0.29735,3368.9,3368.8,3.40244009]
[1735498198158,0.29735,3368.9,3368.8,3.77426294]
[1735498198358,0.29735,3368.9,3368.8,3.77427416]
[1735498199563,0.83594638,3369.2,3368.8,4.51793071]
[1735498199760,0.29734,3369.0,3368.9,4.51793071]
[1735498200853,0.29734,3369.0,3368.9,3.47667771]
[1735498201562,0.29734,3369.0,3368.9,1.43149659]
[1735498202359,0.29734,3369.0,3368.9,2.73285452]
[1735498203163,0.29734,3369.0,3368.9,2.73287305]
[1735498203863,0.4516,3369.1,3368.9,2.73287305]
[1735498204065,0.29733,3369.1,3369.0,0.96673487]
[1735498204370,0.29733,3369.1,3369.0,1.84913487]
[1735498204571,0.29733,3369.1,3369.0,3.61527305]
[1735498205467,0.29733,3369.1,3369.0,2.31391512]
[1735498205957,0.29733,3369.1,3369.0,4.6563489]
[1735498206154,0.29733,3369.1,3369.0,4.65632671]
[1735498206661,0.29733,3369.1,3369.0,4.06142543]
[1735498206866,0.29733,3369.1,3369.0,4.65632368]
[1735498207063,0.29733,3369.1,3369.0,5.07867441]
[1735498207767,0.09262638,3369.2,3369.0,6.34583565]
[1735498207968,0.09262638,3369.2,3369.1,3.69729009]
[1735498208165,0.09262638,3369.2,3369.1,5.46343565]
[1735498208369,0.09262638,3369.2,3369.1,5.46326311]
[1735498209064,4.66446493,3369.5,3369.3,0.29731]
[1735498209362,4.66446493,3369.9,3369.4,1.8424156]
[1735498209669,0.29727,3369.8,3369.7,3.2078]
[1735498209864,0.29727,3369.8,3369.7,5.06129656]
[1735498210061,0.29727,3369.8,3369.7,1.85349656]
[1735498210463,0.29727,3369.8,3369.7,3.15460936]
[1735498211068,0.29727,3369.8,3369.7,4.19547507]
[1735498212664,0.29727,3369.8,3369.7,3.15460936]
[1735498213172,0.29727,3369.8,3369.7,1.85349656]
[1735498213662,0.29727,3369.8,3369.7,1.38871631]
[1735498214070,0.29727,3369.8,3369.7,0.96650339]
[1735498214270,4.96173493,3369.8,3369.7,0.96650339]
[1735498214766,4.42641327,3369.8,3369.7,0.96650339]
[1735498214970,4.42641327,3369.8,3369.7,0.37173207]
[1735498215466,4.42641327,3369.8,3369.7,0.37173479]
[1735498215467,4.72368327,3369.8,3369.7,0.37173479]
[1735498215670,4.79433387,3369.8,3369.7,2.13749865]
[1735498215971,4.79433387,3369.8,3369.7,2.13751135]
[1735498215972,1.29727,3369.8,3369.7,2.13751135]
[1735498216273,1.29727,3369.8,3369.7,0.4646747]
[1735498216968,1.29727,3369.8,3369.7,1.43123341]
[1735498218963,1.29727,3369.8,3369.7,0.83642805]
[1735498219373,1.29727,3369.8,3369.7,2.13746882]
[1735498221175,1.29727,3369.8,3369.7,5.34526882]
[1735498221472,1.29727,3369.8,3369.7,6.3860351]
[1735498221667,1.29727,3369.8,3369.7,6.38598348]
[1735498222475,1.29727,3369.8,3369.7,7.60544858]
[1735498223175,1.29727,3369.8,3369.7,6.38598348]
[1735498223677,1.29727,3369.8,3369.7,7.60530604]
[1735498224171,1.29727,3369.8,3369.7,6.38598348]
[1735498224372,1.29727,3369.8,3369.7,7.60538823]
[1735498225175,0.36801882,3369.8,3369.7,8.03164136]
[1735498225876,0.29727,3369.8,3369.7,8.03164136]
[1735498226272,0.29727,3369.8,3369.7,4.82384136]
[1735498226475,0.29727,3369.8,3369.7,8.03164136]
[1735498226678,0.29727,3369.8,3369.7,8.03163386]
[1735498227277,0.29725,3370.1,3369.7,8.92361355]
[1735498227480,0.29725,3370.1,3369.8,3.65282808]
[1735498227681,0.29725,3370.1,3369.9,3.64595307]
[1735498227876,0.29725,3370.1,3370.0,3.15149751]
[1735498228077,0.29725,3370.1,3370.0,4.19221117]
[1735498228579,0.29725,3370.1,3370.0,5.45029492]
[1735498229279,0.29725,3370.1,3370.0,5.45039608]
[1735498229678,3.4996154,3370.5,3370.0,5.45039608]
[1735498229874,0.29723,3370.2,3370.1,1.84208204]
[1735498230082,7.07863901,3370.6,3370.1,7.55896016]
[1735498230293,0.29722,3370.3,3370.2,1.82868204]
[1735498230482,0.29721,3370.5,3370.2,7.38325381]
[1735498230680,0.29721,3370.5,3370.3,3.68434569]
[1735498230881,0.29721,3370.5,3370.2,3.40167812]
[1735498230882,0.29721,3370.5,3370.4,5.45006116]
[1735498231077,0.29721,3370.5,3370.4,3.15149751]
[1735498231277,0.29721,3370.5,3370.4,1.85045674]
[1735498232084,0.29721,3370.5,3370.4,1.43107862]
[1735498233078,0.29721,3370.5,3370.4,1.84803913]
[1735498233886,0.29721,3370.5,3370.4,1.84795955]
[1735498234385,0.29721,3370.5,3370.4,1.84950236]
[1735498235983,3.2078,3370.9,3370.4,1.84946653]
[1735498236188,0.2972,3370.6,3370.5,1.38479183]
[1735498236484,0.2972,3370.6,3370.5,1.84946653]
[1735498236882,3.7967754,3371.0,3370.6,0.29719]
[1735498237087,0.29716,3371.1,3370.7,1.68180169]
[1735498237284,0.29716,3371.1,3370.8,2.71991169]
[1735498237481,0.29716,3371.1,3370.9,1.38461169]
[1735498237789,0.29716,3371.1,3371.0,1.38461169]
[1735498238586,2.53655656,3371.1,3371.0,1.38461169]
[1735498238888,3.28805656,3371.1,3371.0,1.38461169]
[1735498239090,3.28805656,3371.1,3371.0,0.96614266]
[1735498239287,3.28805656,3371.1,3371.0,2.17403738]
[1735498239586,8.28805656,3371.1,3371.0,0.56644987]
[1735498239985,9.46505656,3371.1,3371.0,0.56644987]
[1735498240184,0.29722,3370.3,3370.2,0.8806]
[1735498241088,0.29722,3370.3,3370.2,1.3011062]
[1735498242489,0.29722,3370.3,3370.2,0.4205062]
[1735498242986,0.29722,3370.3,3370.0,3.2078]
[1735498242987,0.29724,3370.1,3370.0,3.2078]
[1735498243189,5.44719656,3370.1,3369.5,3.2078]
[1735498243384,0.29732,3369.2,3369.1,4.63421512]
[1735498243583,2.53671656,3369.2,3369.1,3.49747412]
[1735498243780,2.53671656,3369.2,3369.1,2.36197112]
[1735498244288,2.23939656,3369.2,3368.8,3.2078]
[1735498244585,0.29735,3368.9,3368.8,3.2078]
[1735498244781,0.29731,3369.3,3368.8,3.2078]
[1735498244988,0.29734,3369.1,3368.8,3.2078]
[1735498245387,0.29734,3369.0,3368.8,3.2078]
[1735498245591,0.29734,3369.1,3368.8,3.2078]
[1735498245795,0.4599,3369.4,3368.8,3.2078]
[1735498246290,0.29734,3369.0,3368.8,3.2078]
[1735498246983,0.29734,3369.1,3368.8,3.2078]
[1735498247183,0.29735,3368.9,3368.8,3.2078]
[1735498249691,0.29737,3368.6,3368.5,0.8412]
[1735498249992,0.29737,3368.7,3368.5,0.8412]
[1735498250188,2.23939656,3369.1,3368.5,0.8412]
[1735498250385,0.29737,3368.6,3368.5,0.8412]
[1735498250585,0.29738,3368.5,3368.4,3.2078]
[1735498251585,0.29738,3368.5,3368.4,4.04455564]
[1735498251988,2.53677656,3368.5,3368.4,4.04455564]
[1735498252195,5.44719656,3368.5,3367.9,0.8838]
[1735498252493,5.74457656,3368.5,3368.4,0.46489072]
[1735498252798,5.74457656,3368.5,3368.4,1.25352569]
[1735498253494,0.29738,3368.6,3368.4,1.25352569]
[1735498253693,0.29738,3368.6,3368.5,1.22673497]
[1735498254091,6.70147404,3368.9,3368.5,1.69162569]
[1735498254092,0.29737,3368.7,3368.5,1.69162569]
[1735498254288,3.79104404,3368.7,3368.6,0.4585]
[1735498254486,3.79104404,3368.7,3368.6,1.71125608]
[1735498255287,3.79104404,3368.7,3368.6,1.25424544]
[1735498255494,0.29737,3368.7,3368.6,1.84924787]
[1735498256101,0.29737,3368.7,3368.6,0.72467087]
[1735498256289,0.29737,3368.7,3368.6,0.12966844]
[1735498258194,0.29737,3368.7,3368.1,0.9179]
[1735498258499,0.29741,3368.2,3368.1,0.9179]
[1735498258799,0.29741,3368.2,3368.1,1.51295042]
[1735498260200,6.70147404,3368.9,3368.1,1.51295042]
[1735498260394,6.70147404,3368.9,3368.6,0.36630041]
[1735498260590,0.29737,3368.7,3368.6,0.36630041]
[1735498260795,0.29737,3368.7,3368.6,0.96129951]
[1735498261096,0.29737,3368.7,3368.1,1.21531]
[1735498261097,0.29738,3368.6,3368.1,1.21531]
[1735498261290,0.29736,3368.8,3368.2,0.59495551]
[1735498261495,3.2078,3368.9,3368.5,0.29738]
[1735498261693,0.29736,3368.8,3368.6,1.46234794]
[1735498261897,3.50515,3368.9,3368.7,0.59494794]
[1735498262099,3.50515,3368.9,3368.8,1.05304794]
[1735498262899,0.29735,3368.9,3368.8,1.05304794]
[1735498265400,0.29735,3368.9,3368.8,1.74919168]
[1735498266201,0.74329,3369.3,3368.8,1.74919168]
[1735498266403,0.29735,3368.9,3368.8,0.4581]
[1735498266697,0.29735,3368.9,3368.8,1.74593219]
[1735498267300,0.74329,3369.3,3368.8,1.74593219]
[1735498267500,0.29735,3368.9,3368.8,0.4581]
[1735498267703,0.29735,3368.9,3368.8,1.74640436]
[1735498268005,0.29735,3368.9,3368.8,2.55161015]
[1735498268201,0.29735,3368.9,3368.8,3.01527067]
[1735498269097,0.29735,3368.9,3368.8,4.31671088]
[1735498269493,0.29735,3368.9,3368.8,3.01527067]
[1735498269704,0.29735,3368.9,3368.8,3.01757725]
[1735498270199,0.29735,3368.9,3368.8,4.31894021]
[1735498270606,2.23939656,3369.4,3368.8,6.1037695]
[1735498270906,0.29734,3369.0,3368.9,4.34419998]
[1735498271206,0.29734,3369.0,3368.9,5.64565354]
[1735498271505,0.29734,3369.0,3368.9,4.9387804]
[1735498271703,0.29734,3369.0,3368.9,3.15395111]
[1735498271904,0.29734,3369.0,3368.9,3.15406095]
[1735498272099,0.29734,3369.0,3368.9,4.19523875]
[1735498272501,2.23939656,3369.4,3368.9,6.94118578]
[1735498272702,0.29734,3369.0,3368.9,2.50876254]
[1735498273002,0.29734,3369.0,3368.9,5.91586183]
[1735498273501,0.29734,3369.0,3368.9,5.17218974]
[1735498273901,0.29734,3369.0,3368.9,6.21334663]
[1735498275002,0.29734,3369.0,3368.9,5.17218974]
[1735498275204,0.29734,3369.0,3368.9,6.21335284]
[1735498275400,0.29734,3369.0,3368.9,5.51249857]
[1735498275802,0.29734,3369.0,3368.9,5.49623771]
[1735498277107,0.29734,3369.0,3368.9,4.45507461]
[1735498277803,0.29734,3369.0,3368.9,5.49624014]
[1735498278707,0.53964586,3369.0,3368.9,3.15364201]
[1735498278901,0.53964586,3369.0,3368.9,1.85221208]
[1735498279207,0.97504586,3369.0,3368.9,1.85221208]
[1735498279413,0.97504586,3369.0,3368.9,1.85250136]
[1735498279705,0.97504586,3369.0,3368.9,3.15399997]
[1735498279910,0.97504586,3369.0,3368.9,4.1951995]
[1735498282404,0.73691798,3369.0,3368.9,2.89370089]
[1735498282605,0.73274,3369.0,3368.9,3.63742865]
[1735498282905,2.0466482,3369.1,3368.9,3.89772725]
[1735498283100,2.3439782,3369.1,3369.0,1.38884084]
[1735498283302,2.3439782,3369.1,3369.0,3.89772725]
[1735498283508,2.3439782,3369.1,3369.0,3.4757254]
[1735498283910,2.3439782,3369.1,3369.0,2.88074756]
[1735498284403,1.67463219,3369.1,3369.0,4.00729649]
[1735498284604,4.88243219,3369.1,3369.0,4.00729649]
[1735498284808,4.88243219,3369.1,3369.0,1.49841008]
[1735498285003,9.88243219,3369.1,3369.0,0.41183323]
[1735498285204,14.24643112,3369.1,3368.2,0.9077]
[1735498285409,0.29739,3368.4,3368.3,4.01480203]
[1735498285902,0.29739,3368.4,3368.3,4.60982951]
[1735498286101,0.29739,3368.4,3368.3,0.96691443]
[1735498286710,0.29739,3368.4,3368.3,0.74258843]
[1735498286906,0.29739,3368.4,3368.3,0.14756095]
[1735498287906,0.2974,3368.3,3368.2,0.9077]
[1735498288314,3.5052,3368.3,3368.2,0.9077]
[1735498288612,3.5052,3368.3,3368.2,1.9490419]
[1735498288810,3.5052,3368.3,3368.2,3.25068795]
[1735498289710,3.97686007,3368.4,3368.3,0.2974]
[1735498289911,1.16486007,3368.4,3368.3,3.83922512]
[1735498290511,3.50523133,3368.6,3368.3,3.83922512]
[1735498290816,3.50523133,3368.6,3368.4,3.54182512]
[1735498291009,3.50523133,3368.6,3368.5,2.24017907]
[1735498291218,3.50523133,3368.6,3368.5,3.54182512]
[1735498291716,3.80259133,3368.8,3368.5,3.54182512]
[1735498291917,3.80259133,3368.8,3368.6,3.54182512]
[1735498292112,3.80259133,3368.8,3368.7,2.24017907]
[1735498292418,3.80259133,3368.8,3368.7,3.54182512]
[1735498292914,3.80259133,3368.8,3368.7,2.34298795]
[1735498293614,3.13324615,3368.8,3368.7,2.51018596]
[1735498293813,2.20358873,3368.8,3368.7,2.51018596]
[1735498294118,2.20358873,3368.8,3368.7,4.14637156]
[1735498294319,0.29736,3368.8,3368.7,4.14637156]
[1735498294713,0.29736,3368.8,3368.7,2.93783165]
[1735498295719,0.4623,3368.9,3368.7,4.205526]
[1735498295916,0.75965,3368.9,3368.8,2.90387995]
[1735498297122,0.75965,3368.9,3368.8,3.32423963]
[1735498297326,0.22417671,3368.9,3368.8,3.32423963]
[1735498297616,0.22417671,3368.9,3368.8,3.32420627]
[1735498298620,6.12455645,3369.1,3368.8,3.6960458]
[1735498298817,6.12455645,3369.1,3368.9,4.1201458]
[1735498299014,6.12455645,3369.1,3369.0,3.6960458]
[1735498299317,6.12455645,3369.1,3369.0,4.90702753]
[1735498299318,5.82722645,3369.1,3369.0,4.90702753]
[1735498299520,5.82722645,3369.1,3369.0,5.27883755]
[1735498299719,4.38771874,3369.1,3369.0,8.66118477]
[1735498300324,0.29731,3369.4,3369.0,8.66107934]
[1735498300619,0.29731,3369.4,3369.1,4.57687934]
[1735498300814,0.29731,3369.4,3369.2,3.275504]
[1735498301019,0.29731,3369.4,3369.3,3.275504]
[1735498301221,0.29731,3369.4,3369.3,4.57687934]
[1735498302113,0.29731,3369.4,3369.3,3.275504]
[1735498302314,0.29731,3369.4,3369.3,1.63946382]
[1735498302523,0.29731,3369.4,3369.3,0.37176947]
[1735498303025,0.74841,3369.4,3369.3,0.37176947]
[1735498303220,0.4511,3369.4,3369.3,0.37181613]
[1735498303524,0.7484,3369.4,3369.3,0.37181613]
[1735498303723,0.7484,3369.4,3369.3,0.7964656]
[1735498304916,0.4418,3369.5,3369.3,1.48894904]
[1735498305116,0.73909,3369.5,3369.4,2.69732592]
[1735498305922,0.73909,3369.5,3369.4,2.00484248]
[1735498306222,3.90759547,3369.6,3369.4,2.00484248]
[1735498306519,0.29735,3368.9,3368.8,0.4389]
[1735498306723,2.98267656,3369.4,3368.8,1.72253005]
[1735498306921,0.29735,3368.9,3368.8,1.74031354]
[1735498307119,0.29735,3368.9,3368.8,2.99287062]
[1735498308428,0.29735,3368.9,3368.8,1.74031354]
[1735498308928,0.29735,3368.9,3368.8,0.4389]
[1735498309623,0.29735,3368.9,3368.8,1.74042033]
[1735498310019,0.29735,3368.9,3368.8,0.4389]
[1735498310820,0.29735,3368.9,3368.8,1.65998703]
[1735498311422,3.2078,3369.2,3368.8,3.29603199]
[1735498311622,3.2078,3369.2,3368.9,1.63604496]
[1735498311821,0.29733,3369.1,3369.0,0.59492544]
[1735498312225,2.9696889,3369.2,3369.0,0.59492544]
[1735498312527,0.29735,3368.9,3368.8,0.4389]
[1735498312716,0.29735,3368.9,3368.8,1.67522107]
[1735498313627,0.29735,3368.9,3368.8,2.71635662]
[1735498314825,0.29735,3368.9,3368.8,4.01775425]
[1735498316324,3.27269289,3369.2,3368.8,4.01775425]
[1735498316526,3.57002289,3369.2,3368.9,4.00703013]
[1735498316727,3.57002289,3369.2,3369.0,1.23632107]
[1735498316928,3.57002289,3369.2,3368.9,0.4282]
[1735498317126,3.57002289,3369.2,3369.0,1.24604196]
[1735498317327,3.57002289,3369.2,3368.9,0.4282]
[1735498317532,3.57002289,3369.2,3369.0,2.54805429]
[1735498317730,3.2670189,3369.2,3369.1,1.30134097]
[1735498317926,3.2670189,3369.2,3369.1,2.54803444]
[1735498318433,3.2670189,3369.2,3369.1,2.91984496]
[1735498318632,3.2670189,3369.2,3369.1,3.38460794]
[1735498318935,3.2670189,3369.2,3369.1,4.42567719]
[1735498319727,3.2670189,3369.2,3369.1,3.38460794]
[1735498320128,3.2670189,3369.2,3369.1,2.91984488]
[1735498320831,3.2670189,3369.2,3369.1,1.67315141]
[1735498321031,3.2670189,3369.2,3369.1,0.37181044]
[1735498323533,0.29733,3369.2,3369.1,0.37181044]
[1735498324537,0.29732,3369.2,3369.1,0.37181824]
[1735498325230,0.4517,3369.3,3369.1,0.37181824]
[1735498325432,4.67144175,3369.4,3369.2,0.66913824]
[1735498325636,4.67144175,3369.4,3369.3,0.82441824]
[1735498325933,3.74204874,3369.4,3369.3,3.79884522]
[1735498326331,3.2078,3369.5,3369.3,3.79884522]
[1735498326636,3.5051,3369.5,3369.4,0.79645477]
[1735498327030,3.50509,3369.5,3369.4,0.37181646]
[1735498327236,5.74448656,3369.5,3369.4,0.37181646]
[1735498329132,6.04109658,3369.5,3369.4,0.37181646]
[1735498329634,5.74448656,3369.5,3369.4,0.37181646]
[1735498329829,5.44719656,3369.5,3369.4,0.37181111]
[1735498330130,11.28649875,3369.5,3369.4,0.3718065]
[1735498330329,11.58378875,3369.5,3369.4,0.3718065]
[1735498330527,9.34439219,3369.5,3369.4,0.3718065]
[1735498330728,6.13659219,3369.5,3369.4,0.3718065]
[1735498331129,0.29729,3369.5,3369.4,0.3718065]
[1735498332238,0.29729,3369.6,3369.4,0.3718065]
[1735498332532,0.29729,3369.6,3369.5,1.2702065]
[1735498332737,0.29729,3369.6,3369.5,0.8984]
[1735498333339,0.29729,3369.6,3369.5,0.4431]
[1735498335038,3.2078,3369.9,3369.5,0.4431]
[1735498335235,0.29727,3369.8,3369.5,0.4431]
[1735498335437,0.29727,3369.8,3369.6,0.4313]
[1735498335637,0.29728,3369.7,3369.6,0.4313]
[1735498337134,3.2078,3369.9,3369.6,0.4313]
[1735498337135,3.50506,3369.9,3369.6,0.4313]
[1735498337339,0.29727,3369.8,3369.7,0.4272]
[1735498343644,0.29731,3369.3,3369.2,3.2078]
[1735498344339,0.29731,3369.3,3369.2,4.50903012]
[1735498345047,0.29731,3369.3,3369.2,5.29795072]
[1735498345248,0.29731,3369.3,3369.2,5.29795705]
[1735498345942,0.29731,3369.3,3369.2,2.09015705]
[1735498346743,0.29731,3369.3,3369.2,2.55095705]
[1735498346941,0.29731,3369.3,3369.2,1.24972693]
[1735498347142,0.29731,3369.3,3369.2,0.78892693]
[1735498349142,0.29731,3369.3,3369.2,0.37178153]
[1735498349340,2.98263656,3369.5,3369.2,0.37179865]
[1735498349544,2.98263656,3369.5,3368.6,0.4598]
[1735498349545,0.29737,3368.7,3368.6,0.4598]
[1735498349739,0.29737,3368.7,3368.6,1.76120817]
[1735498349951,0.29737,3368.6,3368.5,10.15912268]
[1735498350248,0.74427,3368.6,3368.5,10.15912268]
[1735498350651,2.98366656,3368.6,3368.5,10.15912268]
[1735498351651,2.98366656,3368.6,3368.5,3.2078]
[1735498354053,6.48651413,3368.6,3368.5,3.2078]
[1735498354353,6.18914413,3368.6,3368.2,0.4598]
[1735498354554,0.2974,3368.3,3368.2,0.4598]
[1735498359150,0.2974,3368.3,3368.2,0.87665562]
[1735498361356,2.53679656,3368.3,3368.2,0.41685562]
[1735498361552,2.53679656,3368.3,3368.2,0.78875782]
[1735498362159,2.53679656,3368.3,3368.2,0.3719022]
[1735498363953,2.53679656,3368.3,3368.2,0.37193898]
[1735498364854,2.23939656,3368.3,3367.6,4.096]
[1735498365055,2.23939656,3368.3,3367.7,0.37193919]
[1735498365254,0.29744,3367.9,3367.8,0.37193919]
[1735498367962,0.29744,3367.9,3367.6,4.096]
[1735498368161,2.5780506,3368.3,3367.7,0.37194168]
[1735498368362,0.29744,3367.8,3367.6,0.8882]
[1735498368563,0.29744,3367.8,3367.7,0.3719467]
[1735498371160,0.4299,3367.9,3367.6,0.8882]
[1735498371365,0.29745,3367.7,3367.6,0.8882]
[1735498371759,0.29745,3367.7,3367.6,1.26015712]
[1735498373265,0.29745,3367.7,3367.6,0.8882]
[1735498373467,0.29745,3367.7,3367.6,1.26015517]
[1735498375870,0.29744,3367.9,3367.6,1.26015517]
[1735498376073,0.29744,3367.9,3367.7,3.57975517]
[1735498376271,0.29744,3367.9,3367.8,0.82825517]
[1735498377471,0.29744,3367.9,3367.8,0.8282333]
[1735498378674,0.29744,3367.9,3367.8,2.12998369]
[1735498380584,0.29744,3367.9,3367.8,1.75805039]
[1735498381178,0.29743,3368.0,3367.8,1.75805039]
[1735498381675,0.29743,3368.0,3367.8,0.4563]
[1735498382385,2.5780506,3368.3,3367.8,0.4563]
[1735498382579,0.29744,3367.9,3367.8,0.4563]
[1735498382781,0.29744,3367.9,3367.8,1.75805542]
[1735498384183,2.23939656,3368.0,3367.6,0.8882]
[1735498384381,0.29745,3367.7,3367.6,0.8882]
[1735498385285,0.29745,3367.7,3367.6,0.4349]
[1735498386483,2.53684656,3367.7,3367.6,0.4349]
[1735498386683,2.53684656,3367.7,3367.6,0.89987112]
[1735498387489,2.53684656,3367.7,3367.6,1.27185378]
[1735498388387,2.53684656,3367.7,3367.6,0.83695378]
[1735498388985,2.53684656,3367.7,3367.6,0.83697786]
[1735498389589,2.53684656,3367.7,3367.6,0.8369777]
[1735498389590,5.74464656,3367.7,3367.6,0.8369777]
[1735498390091,5.74464656,3367.7,3367.6,0.3720099]
[1735498391493,9.24749413,3367.7,3367.6,0.3720099]
[1735498392187,0.29748,3367.4,3367.3,0.45049624]
[1735498392489,2.53687656,3367.4,3367.3,0.45049624]
[1735498393792,2.23939656,3367.4,3366.6,4.63958735]
[1735498393989,2.53693656,3366.8,3366.7,7.19162121]
[1735498394188,2.53693656,3366.8,3366.7,4.63958735]
[1735498395589,2.53693656,3366.8,3366.6,0.435]
[1735498395895,2.23939656,3366.8,3366.6,0.435]
[1735498396196,0.29754,3366.7,3366.6,0.435]
[1735498396395,0.29755,3366.6,3366.5,3.2078]
[1735498396692,0.29758,3366.3,3366.2,0.4365]
[1735498396892,2.23939656,3366.4,3366.2,0.4365]
[1735498397096,2.53696656,3366.4,3366.2,0.4365]
[1735498398594,2.23939656,3366.4,3366.2,0.4365]
[1735498398798,0.29758,3366.3,3366.2,0.4365]
[1735498403699,0.29758,3366.3,3366.1,3.6286]
[1735498403700,2.23939656,3366.4,3366.1,3.2078]
[1735498403900,0.29759,3366.2,3366.1,3.6262]
[1735498404106,0.29759,3366.2,3366.1,3.99831996]
[1735498405400,0.29759,3366.2,3366.1,0.79051996]
[1735498407895,0.29759,3366.2,3366.1,0.79051054]
[1735498408091,0.29757,3366.4,3366.1,0.79051054]
[1735498408395,2.23939656,3366.7,3366.3,3.2078]
[1735498408595,0.29756,3366.5,3366.4,1.26841054]
[1735498409197,0.29756,3366.6,3366.4,1.26841054]
[1735498409392,2.53694656,3366.7,3366.5,0.37211054]
[1735498409603,2.53694656,3366.7,3366.6,0.37211054]
[1735498409798,2.23939656,3366.7,3366.6,0.37211054]
[1735498410497,2.23939656,3366.7,3366.6,0.37209153]
[1735498411694,2.53693656,3366.7,3366.6,0.37209153]
[1735498412099,2.23939656,3366.7,3366.6,0.37209153]
[1735498413008,2.53693656,3366.7,3366.6,0.37209153]
[1735498413497,2.53693656,3366.7,3366.4,1.328]
[1735498413702,0.29755,3366.6,3366.5,0.37208703]
[1735498416103,0.74388,3366.6,3365.9,3.2078]
[1735498416310,2.53698656,3366.1,3366.0,0.4325]
[1735498416807,2.53698656,3366.1,3365.6,0.8586]
[1735498416808,0.2976,3366.0,3365.6,0.8586]
[1735498417007,0.2976,3366.0,3365.7,1.73500087]
[1735498417504,0.2976,3366.0,3365.8,1.30250087]
[1735498417805,2.23939656,3366.1,3365.7,0.4325]
[1735498417806,0.29761,3365.9,3365.7,0.4325]
[1735498418007,0.29761,3365.9,3365.8,1.3025162]
[1735498420122,0.29764,3365.6,3365.5,3.2078]
[1735498420609,0.29764,3365.6,3365.5,4.5104198]
[1735498421405,0.29763,3365.7,3365.5,5.75496338]
[1735498421619,0.29763,3365.7,3365.5,4.5104198]
[1735498421811,0.29763,3365.7,3365.6,1.3026198]
[1735498422007,0.29763,3365.7,3365.6,2.99649204]
[1735498422313,0.29763,3365.7,3365.6,2.99654335]
[1735498422806,5.44719656,3365.7,3364.9,4.63958735]
[1735498423004,2.53708656,3365.0,3364.9,4.63958735]
[1735498424909,2.53708656,3365.0,3364.8,0.4343]
[1735498425210,0.4322,3364.9,3364.8,0.4343]